[Event "RUS-chT Higher League 2021"]
[Site "Sochi"]
[Date "2021.05.05"]
[Round "5.10"]
[White "Yudin, Sergei"]
[Black "Gurvich, Vitaly"]
[Result "1-0"]
[ECO "B32"]
[WhiteElo "2484"]
[BlackElo "2256"]
[Annotator "ChessBase"]
[PlyCount "93"]
[EventDate "2021.05.01"]
[EventType "team-tourn"]
[EventCountry "RUS"]
[SourceTitle "playchess.com"]
[Source "ChessBase"]
[SourceQuality "1"]
[TimeControl "40/5400+30:1800+30"]

1. e4 {[%emt 0:00:00]} c5 {[%emt 0:00:00]} 2. Nf3 {[%emt 0:00:00]} Nc6 {[%emt 0:00:00]} 3. d4 {[%emt 0:00:00]} cxd4 {[%emt 0:00:00]} 4. Nxd4 {[%emt 0:00:00]} e5 {[%emt 0:00:34]} 5. Nb5 {[%emt 0:00:00]} d6 {[%emt 0:00:05]} 6. c4 {[%emt 0:00:07]} Be7 {[%emt 0:00:37]} 7. N1c3 {[%emt 0:00:20]} a6 8. Na3 {[%emt 0:00:07]} f5 {[%emt 0:00:10]} 9. exf5 {[%emt 0:00:20]} Bxf5 {[%emt 0:00:02]} 10. Bd3 {[%emt 0:00:11]} Be6 {[%emt 0:00:16]} 11. Nc2 {[%emt 0:00:23]} Nf6 {[%emt 0:00:34]} 12. Ne3 {[%emt 0:00:10]} O-O {[%emt 0:08:31]} 13. O-O {[%emt 0:00:27]} Rc8 {[%emt 0:01:07]} 14. b3 {[%emt 0:06:00]} Rf7 {[%emt 0:22:53]} 15. Ned5 {[%emt 0:06:44]} Nd4 {[%emt 0:04:01]} 16. Be3 {[%emt 0:02:50]} Nxd5 {[%emt 0:09:35]} 17. Nxd5 {[%emt 0:00:18]} Bxd5 {[%emt 0:01:11]} 18. cxd5 {[%emt 0:00:13]} Nf5 {[%emt 0:05:06]} 19. Qg4 {[%emt 0:11:23]} g6 {[%emt 0:01:08]} 20. Bxf5 {[%emt 0:03:08]} Rxf5 {[%emt 0:00:02]} 21. Rac1 {[%emt 0:00:31]} Bf8 {[%emt 0:15:14]} 22. Rxc8 {[%emt 0:01:35]} Qxc8 {[%emt 0:00:00]} 23. Rc1 {[%emt 0:00:16]} Qd7 {[%emt 0:00:53]} 24. a4 {[%emt 0:00:31]} Kg7 {[%emt 0:01:15]} 25. Bb6 {[%emt 0:04:39]} h5 {[%emt 0:01:57]} 26. Qh3 {[%emt 0:01:44]} Rf7 {[%emt 0:03:09]} 27. Qxd7 {[%emt 0:00:20]} Rxd7 {[%emt 0:00:02]} 28. Kf1 {[%emt 0:04:21]} Kf7 {[%emt 0:00:15]} 29. Ke2 {[%emt 0:00:18]} Be7 {[%emt 0:00:42]} 30. Kd3 {[%emt 0:01:04]} Bf6 {[%emt 0:04:00]} 31. b4 {[%emt 0:02:39]} e4+ {[%emt 0:01:15]} 32. Kxe4 {[%emt 0:00:44]} Re7+ {[%emt 0:00:08]} 33. Kd3 {[%emt 0:00:29]} Re5 {[%emt 0:00:11]} 34. Rc7+ {[%emt 0:00:17]} Ke8 {[%emt 0:00:10]} 35. Kc4 {[%emt 0:02:46]} Re4+ {[%emt 0:00:18]} 36. Kb3 {[%emt 0:00:24]} Re2 {[%emt 0:02:29]} 37. Rxb7 {[%emt 0:01:26]} Rb2+ {[%emt 0:00:11]} 38. Ka3 {[%emt 0:00:36]} Rb1 {[%emt 0:00:09]} 39. Be3 {[%emt 0:01:10]} a5 {[%emt 0:01:29]} 40. b5 {[%emt 0:00:00]} Ra1+ {[%emt 0:00:00]} 41. Kb3 {[%emt 0:04:33]} Rb1+ {[%emt 0:00:15]} 42. Kc2 {[%emt 0:00:04]} Rb2+ {[%emt 0:00:15]} 43. Kd3 {[%emt 0:00:29]} Rb3+ {[%emt 0:00:08]} 44. Ke2 {[%emt 0:00:19]} Rb2+ {[%emt 0:00:07]} 45. Kf3 {[%emt 0:00:04]} Rb4 {[%emt 0:00:05]} 46. b6 {[%emt 0:02:55]} Rxa4 {[%emt 0:00:55]} 47. Ra7 {[%emt 0:03:33]} 1-0

[Event "RUS-chT Higher League 2021"]
[Site "Sochi"]
[Date "2021.05.05"]
[Round "5.11"]
[White "Mikhailovsky, Vladimir"]
[Black "Pogromsky, Mikhail"]
[Result "1/2-1/2"]
[ECO "B04"]
[WhiteElo "2216"]
[BlackElo "2422"]
[Annotator "NA"]
[PlyCount "111"]
[EventDate "2021.05.01"]
[EventType "team-tourn"]
[EventCountry "RUS"]
[SourceTitle "playchess.com"]
[Source "ChessBase"]
[SourceQuality "1"]
[TimeControl "40/5400+30:1800+30"]

1. e4 {[%emt 0:00:00]} Nf6 {[%emt 0:00:00]} 2. e5 {[%emt 0:00:00]} Nd5 {[%emt 0:00:00]} 3. d4 {[%emt 0:00:00]} d6 {[%emt 0:01:03]} 4. Nf3 {[%emt 0:00:08]} dxe5 {[%emt 0:01:04]} 5. Nxe5 {[%emt 0:00:15]} c6 {[%emt 0:00:12]} 6. Be2 {[%emt 0:00:52]} g6 {[%emt 0:05:44]} 7. O-O {[%emt 0:02:26]} Bg7 {[%emt 0:00:05]} 8. c4 {[%emt 0:02:41]} Nc7 {[%emt 0:00:53]} 9. Be3 {[%emt 0:06:54]} O-O {[%emt 0:02:05]} 10. Nc3 {[%emt 0:01:17]} Nd7 {[%emt 0:06:34]} 11. Nf3 {[%emt 0:03:14]} e5 {[%emt 0:16:41]} 12. Qd2 {[%emt 0:18:28]} exd4 {[%emt 0:08:28]} 13. Nxd4 {[%emt 0:04:44]} Ne5 {[%emt 0:06:34]} 14. h3 {[%emt 0:03:02]} Ne6 {[%emt 0:03:24]} 15. Rad1 {[%emt 0:01:28]} Nxd4 {[%emt 0:05:56]} 16. Bxd4 {[%emt 0:00:27]} Be6 {[%emt 0:07:14]} 17. b3 {[%emt 0:04:50]} Qa5 {[%emt 0:09:15]} 18. Ne4 {[%emt 0:29:48]} Qxd2 {[%emt 0:08:39]} 19. Rxd2 {[%emt 0:00:05]} Nd7 {[%emt 0:07:10]} 20. Bxg7 {[%emt 0:03:02]} Kxg7 {[%emt 0:00:06]} 21. Rfd1 {[%emt 0:00:04]} Nf6 {[%emt 0:05:04]} 22. Nc5 {[%emt 0:01:24]} Rab8 {[%emt 0:00:59]} 23. Nxe6+ {[%emt 0:03:44]} fxe6 {[%emt 0:00:01]} 24. b4 {[%emt 0:02:32]} Kf7 {[%emt 0:02:18]} 25. Rd6 {[%emt 0:01:57]} Rfe8 {[%emt 0:00:44]} 26. Bf3 {[%emt 0:01:03]} g5 {[%emt 0:01:17]} 27. Kf1 {[%emt 0:01:33]} Rbc8 {[%emt 0:00:24]} 28. Ke2 {[%emt 0:01:32]} Rc7 {[%emt 0:00:45]} 29. R6d2 {[%emt 0:03:22]} Ke7 {[%emt 0:00:35]} 30. Ke3 {[%emt 0:00:26]} Rg8 {[%emt 0:00:31]} 31. g3 {[%emt 0:00:48]} Rd7 {[%emt 0:00:14]} 32. a4 {[%emt 0:00:22]} Rxd2 {[%emt 0:00:23]} 33. Rxd2 {[%emt 0:00:02]} h5 {[%emt 0:01:09]} 34. Bg2 {[%emt 0:00:45]} Nd7 {[%emt 0:00:31]} 35. a5 {[%emt 0:01:06]} Ne5 {[%emt 0:00:43]} 36. Bf1 {[%emt 0:01:19]} g4 {[%emt 0:00:35]} 37. h4 {[%emt 0:00:35]} Rf8 {[%emt 0:00:20]} 38. Be2 {[%emt 0:00:25]} a6 {[%emt 0:00:46]} 39. Rd4 {[%emt 0:00:33]} c5 {[%emt 0:00:22]} 40. Re4 {[%emt 0:00:00]} Nc6 {[%emt 0:00:00]} 41. bxc5 {[%emt 0:11:09]} Rf5 {[%emt 0:03:44]} 42. f3 {[%emt 0:01:01]} gxf3 {[%emt 0:00:08]} 43. Bxf3 {[%emt 0:00:10]} Rxc5 {[%emt 0:03:18]} 44. g4 {[%emt 0:00:09]} hxg4 {[%emt 0:08:52]} 45. Rxg4 {[%emt 0:00:53]} Ne5 {[%emt 0:08:12]} 46. Rg7+ {[%emt 0:00:31]} Kf6 {[%emt 0:00:31]} 47. Rxb7 {[%emt 0:00:20]} Rxc4 {[%emt 0:00:37]} 48. Be2 {[%emt 0:00:16]} Rxh4 {[%emt 0:00:09]} 49. Bxa6 {[%emt 0:00:23]} Ra4 {[%emt 0:00:39]} 50. Rb5 {[%emt 0:01:40]} Nc4+ {[%emt 0:01:09]} 51. Kd3 {[%emt 0:00:27]} Nxa5 {[%emt 0:02:08]} 52. Rb6 {[%emt 0:00:25]} Nb3 {[%emt 0:02:38]} 53. Rxb3 {[%emt 0:00:58]} Rxa6 {[%emt 0:00:17]} 54. Rb5 {[%emt 0:00:04]} e5 {[%emt 0:00:13]} 55. Rb8 {[%emt 0:00:18]} Ra3+ 56. Ke4 1/2-1/2

[Event "RUS-chT Higher League 2021"]
[Site "Sochi"]
[Date "2021.05.05"]
[Round "5.12"]
[White "Matveev, Vladimir"]
[Black "Khudyakov, Stanislav"]
[Result "1-0"]
[ECO "D11"]
[WhiteElo "2368"]
[BlackElo "2238"]
[Annotator "NA"]
[PlyCount "159"]
[EventDate "2021.05.01"]
[EventType "team-tourn"]
[EventCountry "RUS"]
[SourceTitle "playchess.com"]
[Source "ChessBase"]
[SourceQuality "1"]
[TimeControl "40/5400+30:1800+30"]

1. d4 {[%emt 0:00:00]} d5 {[%emt 0:00:00]} 2. c4 {[%emt 0:00:00]} c6 {[%emt 0:00:00]} 3. Nf3 {[%emt 0:00:00]} Nf6 {[%emt 0:00:00]} 4. Qb3 {[%emt 0:03:34]} dxc4 {[%emt 0:01:01]} 5. Qxc4 {[%emt 0:00:03]} Bf5 {[%emt 0:00:12]} 6. g3 {[%emt 0:00:03]} e6 {[%emt 0:00:06]} 7. Bg2 {[%emt 0:00:02]} Nbd7 {[%emt 0:00:08]} 8. O-O {[%emt 0:00:05]} Be7 {[%emt 0:00:09]} 9. Nc3 {[%emt 0:00:05]} O-O {[%emt 0:00:06]} 10. Qb3 {[%emt 0:00:01]} Qb6 {[%emt 0:00:08]} 11. Nd2 {[%emt 0:00:04]} a5 {[%emt 0:00:57]} 12. e4 {[%emt 0:10:43]} Bg6 {[%emt 0:00:07]} 13. Qxb6 {[%emt 0:19:17]} Nxb6 {[%emt 0:00:59]} 14. a4 {[%emt 0:00:01]} Rfd8 {[%emt 0:07:25]} 15. Nb3 {[%emt 0:00:16]} h6 {[%emt 0:06:09]} 16. Re1 {[%emt 0:25:36]} Bb4 {[%emt 0:05:27]} 17. f3 {[%emt 0:00:40]} Nfd7 {[%emt 0:05:53]} 18. Bf1 {[%emt 0:10:23]} e5 {[%emt 0:04:12]} 19. Be3 {[%emt 0:00:08]} exd4 {[%emt 0:02:11]} 20. Bxd4 {[%emt 0:00:05]} c5 {[%emt 0:01:58]} 21. Bf2 {[%emt 0:01:57]} Ne5 {[%emt 0:04:36]} 22. Kg2 {[%emt 0:00:17]} Nbc4 {[%emt 0:06:17]} 23. Bxc5 {[%emt 0:05:42]} Nd3 {[%emt 0:04:20]} 24. Bxd3 {[%emt 0:02:32]} Rxd3 {[%emt 0:00:06]} 25. Red1 {[%emt 0:01:51]} Nxb2 {[%emt 0:09:49]} 26. Rxd3 {[%emt 0:00:42]} Nxd3 {[%emt 0:02:12]} 27. Bxb4 {[%emt 0:00:20]} axb4 {[%emt 0:01:16]} 28. Nd5 {[%emt 0:00:15]} f6 {[%emt 0:01:03]} 29. a5 {[%emt 0:08:16]} Bf7 {[%emt 0:02:19]} 30. Rd1 {[%emt 0:02:11]} Ne5 {[%emt 0:00:56]} 31. Rc1 {[%emt 0:01:27]} Nc6 {[%emt 0:06:02]} 32. Rc5 {[%emt 0:00:05]} Kf8 {[%emt 0:03:41]} 33. Rb5 {[%emt 0:02:40]} Ra7 {[%emt 0:01:23]} 34. Kf2 {[%emt 0:00:18]} Be6 {[%emt 0:13:11]} 35. Ke3 {[%emt 0:02:45]} Bf7 {[%emt 0:00:07]} 36. f4 {[%emt 0:00:26]} Be6 {[%emt 0:02:08]} 37. Kd3 {[%emt 0:01:45]} Bh3 {[%emt 0:00:15]} 38. Ke3 {[%emt 0:01:00]} Be6 {[%emt 0:00:37]} 39. Rc5 {[%emt 0:01:15]} Bg4 {[%emt 0:02:24]} 40. Kd2 {[%emt 0:00:00]} Bf3 {[%emt 0:00:00]} 41. Rc4 {[%emt 0:04:05]} f5 {[%emt 0:03:32]} 42. Nxb4 {[%emt 0:00:29]} Bxe4 {[%emt 0:02:32]} 43. Nxc6 {[%emt 0:11:37]} bxc6 {[%emt 0:01:26]} 44. Ra4 {[%emt 0:01:45]} Ke7 {[%emt 0:00:36]} 45. Nc5 {[%emt 0:07:28]} Bd5 {[%emt 0:08:05]} 46. Kc3 {[%emt 0:00:32]} Kd6 {[%emt 0:01:25]} 47. Kd4 {[%emt 0:01:14]} Be6 {[%emt 0:04:23]} 48. Nxe6 {[%emt 0:03:04]} Kxe6 {[%emt 0:00:05]} 49. a6 {[%emt 0:01:48]} Kd6 {[%emt 0:00:04]} 50. Kc4 {[%emt 0:00:27]} g5 {[%emt 0:05:44]} 51. h3 {[%emt 0:00:38]} gxf4 {[%emt 0:00:32]} 52. gxf4 {[%emt 0:00:05]} Kc7 {[%emt 0:06:41]} 53. Kc5 {[%emt 0:00:09]} Kb8 {[%emt 0:00:05]} 54. Kxc6 {[%emt 0:02:18]} Re7 {[%emt 0:01:55]} 55. Ra5 {[%emt 0:01:27]} Re3 {[%emt 0:01:13]} 56. h4 {[%emt 0:01:14]} Rc3+ {[%emt 0:01:26]} 57. Kd6 {[%emt 0:00:14]} Rh3 {[%emt 0:00:19]} 58. a7+ {[%emt 0:00:39]} Ka8 {[%emt 0:00:06]} 59. Ke5 {[%emt 0:00:11]} Rxh4 {[%emt 0:00:05]} 60. Ra6 {[%emt 0:00:04]} Rh1 {[%emt 0:02:08]} 61. Kxf5 {[%emt 0:00:05]} h5 {[%emt 0:00:40]} 62. Rh6 {[%emt 0:00:34]} Kxa7 {[%emt 0:00:20]} 63. Kg5 {[%emt 0:00:03]} Rg1+ {[%emt 0:00:15]} 64. Kxh5 {[%emt 0:00:09]} Kb7 {[%emt 0:00:05]} 65. Rg6 {[%emt 0:00:06]} Rf1 {[%emt 0:00:28]} 66. Kg5 {[%emt 0:00:04]} Kc7 {[%emt 0:00:10]} 67. Re6 {[%emt 0:00:31]} Kd7 {[%emt 0:00:11]} 68. f5 {[%emt 0:00:12]} Rg1+ {[%emt 0:01:15]} 69. Kf6 {[%emt 0:00:04]} Rh1 {[%emt 0:00:06]} 70. Re2 {[%emt 0:00:06]} Rg1 {[%emt 0:00:45]} 71. Kf7 {[%emt 0:00:03]} Rg5 {[%emt 0:00:32]} 72. f6 {[%emt 0:00:03]} Rg1 {[%emt 0:00:05]} 73. Kf8 {[%emt 0:00:13]} Kd8 {[%emt 0:00:09]} 74. f7 {[%emt 0:00:06]} Kd7 {[%emt 0:00:08]} 75. Rd2+ {[%emt 0:00:14]} Kc7 {[%emt 0:00:11]} 76. Rd4 {[%emt 0:00:07]} Kc8 {[%emt 0:00:20]} 77. Ke7 {[%emt 0:00:05]} Re1+ {[%emt 0:00:03]} 78. Kf6 {[%emt 0:00:05]} Rf1+ {[%emt 0:00:05]} 79. Ke6 {[%emt 0:00:11]} Kc7 {[%emt 0:00:23]} 80. Rd5 {[%emt 0:00:05]} 1-0

[Event "RUS-chT Higher League 2021"]
[Site "Sochi"]
[Date "2021.05.07"]
[Round "6.2"]
[White "Shomoev, Anton"]
[Black "Obgolts, Erik"]
[Result "1-0"]
[ECO "B15"]
[WhiteElo "2563"]
[BlackElo "2414"]
[Annotator "ChessBase"]
[PlyCount "85"]
[EventDate "2021.05.01"]
[EventType "team-tourn"]
[EventCountry "RUS"]
[SourceTitle "playchess.com"]
[Source "ChessBase"]
[SourceQuality "1"]
[TimeControl "40/5400+30:1800+30"]

1. e4 {[%emt 0:00:00]} c6 {[%emt 0:00:00]} 2. d4 {[%emt 0:00:00]} d5 {[%emt 0:00:00]} 3. Nc3 {[%emt 0:00:00]} dxe4 {[%emt 0:00:00]} 4. Nxe4 {[%emt 0:00:00]} Nf6 {[%emt 0:00:00]} 5. Nxf6+ {[%emt 0:00:00]} exf6 {[%emt 0:00:00]} 6. Nf3 {[%emt 0:00:01]} Bd6 {[%emt 0:00:40]} 7. Bd3 {[%emt 0:00:06]} O-O {[%emt 0:02:42]} 8. O-O {[%emt 0:00:07]} Bg4 {[%emt 0:05:32]} 9. h3 {[%emt 0:00:43]} Bh5 {[%emt 0:00:10]} 10. Bf5 {[%emt 0:00:06]} Na6 {[%emt 0:11:35]} 11. a3 {[%emt 0:03:13]} Nc7 {[%emt 0:00:41]} 12. Qd3 {[%emt 0:03:05]} Bg6 {[%emt 0:00:47]} 13. Nh4 {[%emt 0:00:06]} Nd5 {[%emt 0:13:30]} 14. Bd2 {[%emt 0:13:51]} a5 {[%emt 0:10:35]} 15. Rfd1 {[%emt 0:12:01]} Bc7 {[%emt 0:03:05]} 16. c4 {[%emt 0:00:26]} Ne7 {[%emt 0:00:19]} 17. Nxg6 {[%emt 0:05:41]} hxg6 {[%emt 0:00:17]} 18. Be4 {[%emt 0:00:04]} f5 {[%emt 0:02:48]} 19. Bf3 {[%emt 0:00:15]} Qd6 {[%emt 0:00:11]} 20. g3 {[%emt 0:00:45]} Qf6 {[%emt 0:06:17]} 21. d5 {[%emt 0:10:23]} Rfd8 {[%emt 0:11:13]} 22. Bc3 {[%emt 0:08:52]} Be5 {[%emt 0:00:50]} 23. Bxe5 {[%emt 0:00:05]} Qxe5 {[%emt 0:00:02]} 24. Re1 {[%emt 0:00:06]} Qf6 {[%emt 0:02:56]} 25. Qc3 {[%emt 0:12:42]} Kf8 {[%emt 0:04:39]} 26. Qxf6 {[%emt 0:00:18]} gxf6 {[%emt 0:00:04]} 27. dxc6 {[%emt 0:00:15]} Nxc6 {[%emt 0:00:59]} 28. Red1 {[%emt 0:02:47]} Rab8 {[%emt 0:05:53]} 29. Rxd8+ {[%emt 0:03:35]} Rxd8 {[%emt 0:01:29]} 30. Rd1 {[%emt 0:00:02]} Nd4 {[%emt 0:02:52]} 31. Kg2 {[%emt 0:05:09]} b6 {[%emt 0:00:03]} 32. b4 {[%emt 0:00:16]} axb4 {[%emt 0:05:33]} 33. axb4 {[%emt 0:00:21]} Ke7 {[%emt 0:00:02]} 34. Rd2 {[%emt 0:08:23]} g5 {[%emt 0:05:01]} 35. Bd5 {[%emt 0:02:24]} Ne6 {[%emt 0:00:11]} 36. Ra2 {[%emt 0:00:32]} Rd7 {[%emt 0:04:32]} 37. Ra6 {[%emt 0:04:24]} Nc7 {[%emt 0:00:52]} 38. Ra7 {[%emt 0:00:10]} Kd6 {[%emt 0:00:02]} 39. Bf3 {[%emt 0:02:39]} Ke5 {[%emt 0:01:41]} 40. c5 {[%emt 0:00:00]} b5 {[%emt 0:00:00]} 41. Bc6 {[%emt 0:04:23]} Re7 {[%emt 0:01:07]} 42. Bxb5 {[%emt 0:00:16]} Kd4 {[%emt 0:00:16]} 43. Bf1 {[%emt 0:00:40]} 1-0

[Event "RUS-chT Higher League 2021"]
[Site "Sochi"]
[Date "2021.05.07"]
[Round "6.3"]
[White "Ovod, Evgenija"]
[Black "Drygalov, Andrey"]
[Result "1/2-1/2"]
[ECO "C50"]
[WhiteElo "2341"]
[BlackElo "2500"]
[Annotator "ChessBase"]
[PlyCount "68"]
[EventDate "2021.05.01"]
[EventType "team-tourn"]
[EventCountry "RUS"]
[SourceTitle "playchess.com"]
[Source "ChessBase"]
[SourceQuality "1"]
[TimeControl "40/5400+30:1800+30"]

1. e4 {[%emt 0:00:00]} e5 {[%emt 0:00:00]} 2. Nf3 {[%emt 0:00:00]} Nc6 {[%emt 0:00:00]} 3. Bc4 {[%emt 0:00:00]} Bc5 {[%emt 0:00:00]} 4. O-O {[%emt 0:00:00]} Nf6 {[%emt 0:00:00]} 5. d3 {[%emt 0:00:00]} d6 {[%emt 0:00:00]} 6. c3 {[%emt 0:00:00]} a5 {[%emt 0:00:17]} 7. Re1 {[%emt 0:00:07]} O-O {[%emt 0:00:34]} 8. h3 {[%emt 0:00:05]} h6 {[%emt 0:00:14]} 9. b3 {[%emt 0:00:06]} Ba7 {[%emt 0:03:58]} 10. Nbd2 {[%emt 0:00:13]} Be6 {[%emt 0:02:14]} 11. Nf1 {[%emt 0:00:23]} Re8 {[%emt 0:05:15]} 12. Bb5 {[%emt 0:28:06]} Bd7 {[%emt 0:12:56]} 13. Ng3 {[%emt 0:06:26]} Ne7 {[%emt 0:02:44]} 14. Bxd7 {[%emt 0:00:47]} Qxd7 {[%emt 0:00:04]} 15. Nh4 {[%emt 0:00:10]} Kh7 {[%emt 0:10:17]} 16. Qf3 {[%emt 0:13:20]} Qe6 {[%emt 0:01:56]} 17. Nhf5 {[%emt 0:06:38]} Nxf5 {[%emt 0:06:12]} 18. exf5 {[%emt 0:02:10]} Qd7 {[%emt 0:05:30]} 19. Ne4 {[%emt 0:01:46]} Qe7 {[%emt 0:01:13]} 20. Be3 {[%emt 0:18:06]} Bxe3 {[%emt 0:03:38]} 21. fxe3 {[%emt 0:00:28]} c6 {[%emt 0:01:48]} 22. Nxf6+ {[%emt 0:03:12]} Qxf6 {[%emt 0:00:47]} 23. e4 {[%emt 0:00:04]} Rad8 {[%emt 0:01:36]} 24. Re2 {[%emt 0:05:03]} Rd7 {[%emt 0:04:17]} 25. Rae1 {[%emt 0:00:59]} Red8 {[%emt 0:01:32]} 26. c4 {[%emt 0:00:23]} Re8 {[%emt 0:08:40]} 27. Kh1 {[%emt 0:05:34]} Qd8 {[%emt 0:06:29]} 28. Qf2 {[%emt 0:00:03]} f6 {[%emt 0:03:27]} 29. Rc1 {[%emt 0:04:07]} d5 {[%emt 0:00:58]} 30. cxd5 {[%emt 0:00:07]} cxd5 {[%emt 0:00:03]} 31. Kh2 {[%emt 0:00:08]} Qe7 {[%emt 0:08:38]} 32. Qc5 {[%emt 0:02:15]} Qd8 {[%emt 0:01:51]} 33. Qf2 {[%emt 0:01:58]} Qe7 {[%emt 0:05:52]} 34. Qc5 {[%emt 0:00:06]} Qd8 {[%emt 0:01:04]} 1/2-1/2

[Event "RUS-chT Higher League 2021"]
[Site "Sochi"]
[Date "2021.05.07"]
[Round "6.4"]
[White "Gutenev, Alexander"]
[Black "Vasilyev, Evgeny"]
[Result "1-0"]
[ECO "C18"]
[WhiteElo "2431"]
[BlackElo "2055"]
[Annotator "NA"]
[PlyCount "67"]
[EventDate "2021.05.01"]
[EventType "team-tourn"]
[EventCountry "RUS"]
[SourceTitle "playchess.com"]
[Source "ChessBase"]
[SourceQuality "1"]
[TimeControl "40/5400+30:1800+30"]

1. e4 {[%emt 0:00:00]} e6 {[%emt 0:00:00]} 2. d4 {[%emt 0:00:00]} d5 {[%emt 0:00:00]} 3. Nc3 {[%emt 0:00:34]} Bb4 {[%emt 0:00:00]} 4. e5 {[%emt 0:00:07]} c5 {[%emt 0:00:07]} 5. a3 {[%emt 0:00:04]} Bxc3+ {[%emt 0:00:12]} 6. bxc3 {[%emt 0:00:04]} Ne7 {[%emt 0:00:14]} 7. Qg4 {[%emt 0:00:54]} cxd4 {[%emt 0:00:18]} 8. Bd3 {[%emt 0:00:24]} Qa5 {[%emt 0:01:28]} 9. Rb1 {[%emt 0:00:11]} Qxc3+ {[%emt 0:01:21]} 10. Bd2 {[%emt 0:00:17]} Qc7 {[%emt 0:08:15]} 11. Nf3 {[%emt 0:00:20]} Nbc6 {[%emt 0:04:52]} 12. Qxg7 {[%emt 0:07:09]} Rg8 {[%emt 0:00:10]} 13. Qxh7 {[%emt 0:00:09]} Nxe5 {[%emt 0:02:20]} 14. Nxe5 {[%emt 0:00:18]} Qxe5+ {[%emt 0:00:12]} 15. Kf1 {[%emt 0:00:04]} Qg7 {[%emt 0:07:31]} 16. Qxg7 {[%emt 0:01:27]} Rxg7 {[%emt 0:00:07]} 17. c3 {[%emt 0:00:57]} dxc3 {[%emt 0:06:05]} 18. Bxc3 {[%emt 0:00:20]} Rg8 {[%emt 0:00:10]} 19. h4 {[%emt 0:04:06]} Nf5 {[%emt 0:48:17]} 20. Bxf5 {[%emt 0:06:36]} exf5 {[%emt 0:00:06]} 21. h5 {[%emt 0:00:02]} Be6 {[%emt 0:08:14]} 22. h6 {[%emt 0:02:59]} O-O-O {[%emt 0:00:24]} 23. h7 {[%emt 0:00:28]} Rh8 {[%emt 0:00:11]} 24. Rc1 {[%emt 0:02:41]} Kb8 {[%emt 0:04:39]} 25. Be5+ {[%emt 0:00:14]} Ka8 {[%emt 0:00:05]} 26. Ke2 {[%emt 0:00:59]} a5 {[%emt 0:02:39]} 27. Kf3 {[%emt 0:02:29]} Ka7 {[%emt 0:03:01]} 28. Kf4 {[%emt 0:00:12]} d4 {[%emt 0:01:10]} 29. Bxh8 {[%emt 0:00:25]} Rxh8 {[%emt 0:00:09]} 30. Rcd1 {[%emt 0:00:26]} Kb6 {[%emt 0:00:37]} 31. Rxd4 {[%emt 0:00:16]} Kc5 {[%emt 0:00:14]} 32. Rd3 {[%emt 0:00:55]} b5 {[%emt 0:00:26]} 33. Ke5 {[%emt 0:00:24]} f4 {[%emt 0:01:20]} 34. Ke4 1-0

[Event "RUS-chT Higher League 2021"]
[Site "Sochi"]
[Date "2021.05.07"]
[Round "6.5"]
[White "Khegay, Dmitriy"]
[Black "Mokshanov, Alexey"]
[Result "1/2-1/2"]
[ECO "D00"]
[WhiteElo "2523"]
[BlackElo "2448"]
[Annotator "ChessBase"]
[PlyCount "65"]
[EventDate "2021.05.01"]
[EventType "team-tourn"]
[EventCountry "RUS"]
[SourceTitle "playchess.com"]
[Source "ChessBase"]
[SourceQuality "1"]
[TimeControl "40/5400+30:1800+30"]

1. d4 {[%emt 0:00:00]} d5 {[%emt 0:00:00]} 2. Bf4 {[%emt 0:00:00]} Nf6 {[%emt 0:04:02]} 3. e3 {[%emt 0:00:00]} c5 {[%emt 0:00:43]} 4. dxc5 {[%emt 0:00:00]} Nc6 {[%emt 0:08:56]} 5. Bb5 {[%emt 0:00:17]} g6 {[%emt 0:02:46]} 6. Nc3 {[%emt 0:05:05]} Bg7 {[%emt 0:00:22]} 7. Nge2 {[%emt 0:03:48]} O-O {[%emt 0:00:35]} 8. O-O {[%emt 0:02:04]} e5 {[%emt 0:06:03]} 9. Bg5 {[%emt 0:08:20]} Be6 {[%emt 0:01:02]} 10. f4 {[%emt 0:04:56]} h6 {[%emt 0:05:45]} 11. Bxf6 {[%emt 0:12:59]} Bxf6 {[%emt 0:00:58]} 12. fxe5 {[%emt 0:02:58]} Bxe5 {[%emt 0:09:26]} 13. Nf4 {[%emt 0:19:58]} d4 {[%emt 0:07:03]} 14. Nxe6 {[%emt 0:01:52]} Qh4 {[%emt 0:02:20]} 15. Nf4 {[%emt 0:04:17]} dxc3 {[%emt 0:00:20]} 16. bxc3 {[%emt 0:06:03]} Bxc3 {[%emt 0:03:08]} 17. Rb1 {[%emt 0:00:06]} Bg7 {[%emt 0:01:15]} 18. Bxc6 {[%emt 0:02:56]} bxc6 {[%emt 0:00:09]} 19. Qf3 {[%emt 0:00:36]} Qe7 {[%emt 0:01:02]} 20. Nd3 {[%emt 0:00:18]} Qe6 {[%emt 0:02:15]} 21. Rb3 {[%emt 0:02:58]} Rae8 {[%emt 0:05:20]} 22. Kh1 {[%emt 0:02:02]} Qxe3 {[%emt 0:01:59]} 23. Qxe3 {[%emt 0:06:46]} Rxe3 {[%emt 0:00:12]} 24. Rb7 {[%emt 0:00:03]} a5 {[%emt 0:01:54]} 25. Ra7 {[%emt 0:02:25]} Bc3 {[%emt 0:02:20]} 26. Rf2 {[%emt 0:01:56]} f5 {[%emt 0:09:26]} 27. g3 {[%emt 0:00:24]} g5 {[%emt 0:04:37]} 28. Rd7 {[%emt 0:01:50]} Rf6 {[%emt 0:01:14]} 29. Kg2 {[%emt 0:03:26]} Kf8 {[%emt 0:01:48]} 30. Kf1 {[%emt 0:01:08]} Re7 {[%emt 0:01:17]} 31. Rd8+ {[%emt 0:00:48]} Re8 {[%emt 0:00:37]} 32. Rd7 {[%emt 0:00:51]} Re7 {[%emt 0:00:06]} 33. Rd8+ {[%emt 0:00:08]} 1/2-1/2

[Event "RUS-chT Higher League 2021"]
[Site "Sochi"]
[Date "2021.05.07"]
[Round "6.6"]
[White "Grebnev, Aleksey"]
[Black "Yudin, Sergei"]
[Result "1/2-1/2"]
[ECO "C41"]
[WhiteElo "2283"]
[BlackElo "2484"]
[Annotator "ChessBase"]
[PlyCount "66"]
[EventDate "2021.05.01"]
[EventType "team-tourn"]
[EventCountry "RUS"]
[SourceTitle "playchess.com"]
[Source "ChessBase"]
[SourceQuality "1"]
[TimeControl "40/5400+30:1800+30"]

1. e4 {[%emt 0:00:00]} d6 {[%emt 0:00:00]} 2. d4 {[%emt 0:00:00]} Nf6 {[%emt 0:00:00]} 3. Nc3 {[%emt 0:00:00]} e5 {[%emt 0:00:00]} 4. Nf3 {[%emt 0:00:00]} Nbd7 {[%emt 0:00:00]} 5. Bc4 {[%emt 0:00:00]} Be7 {[%emt 0:00:00]} 6. O-O {[%emt 0:00:03]} O-O {[%emt 0:00:03]} 7. Re1 {[%emt 0:00:12]} c6 {[%emt 0:00:06]} 8. a4 {[%emt 0:00:08]} a5 {[%emt 0:00:05]} 9. h3 {[%emt 0:00:26]} Nb6 {[%emt 0:00:11]} 10. Bb3 {[%emt 0:00:33]} Nfd7 {[%emt 0:00:31]} 11. Be3 {[%emt 0:03:05]} exd4 {[%emt 0:00:14]} 12. Nxd4 {[%emt 0:03:16]} Nc5 {[%emt 0:00:19]} 13. Qe2 {[%emt 0:03:01]} Bf6 {[%emt 0:07:39]} 14. Rad1 {[%emt 0:01:16]} Nxb3 {[%emt 0:05:14]} 15. cxb3 {[%emt 0:01:36]} Ra6 {[%emt 0:07:03]} 16. Nf3 {[%emt 0:04:05]} Qe7 {[%emt 0:01:01]} 17. Qd3 {[%emt 0:02:20]} Be6 {[%emt 0:01:19]} 18. Nd4 {[%emt 0:05:31]} Bxd4 {[%emt 0:05:56]} 19. Bxd4 {[%emt 0:01:47]} c5 {[%emt 0:00:12]} 20. Nd5 {[%emt 0:09:39]} Nxd5 {[%emt 0:04:26]} 21. exd5 {[%emt 0:00:08]} cxd4 {[%emt 0:00:03]} 22. Qc4 {[%emt 0:04:26]} Qf6 {[%emt 0:05:45]} 23. dxe6 {[%emt 0:00:15]} fxe6 {[%emt 0:00:08]} 24. Qxe6+ {[%emt 0:01:02]} Qxe6 {[%emt 0:00:06]} 25. Rxe6 {[%emt 0:00:06]} Rb6 {[%emt 0:00:17]} 26. Rd3 {[%emt 0:00:28]} Rf5 {[%emt 0:01:17]} 27. Re4 {[%emt 0:05:50]} Rd5 {[%emt 0:00:31]} 28. g4 {[%emt 0:00:37]} Rb4 {[%emt 0:00:21]} 29. Kg2 {[%emt 0:01:13]} b5 {[%emt 0:04:27]} 30. axb5 {[%emt 0:02:23]} Rdxb5 {[%emt 0:00:14]} 31. Rexd4 {[%emt 0:00:26]} Rxd4 {[%emt 0:00:06]} 32. Rxd4 {[%emt 0:00:04]} Rxb3 {[%emt 0:00:04]} 33. Rxd6 {[%emt 0:00:25]} Rxb2 1/2-1/2